fUST/lending_fUST_20250610
["ID","MTS","AMOUNT","RATE_DAILY","PERIOD"]
[365181705,1749521446109,-500.0,0.00021368,2]
[365181707,1749521446118,-500.0,0.00021368,2]
[365181709,1749521446128,-500.0,0.00021368,2]
[365181711,1749521446137,-500.0,0.00021368,2]
[365181713,1749521446147,-500.0,0.00021368,2]
[365181715,1749521446156,-500.0,0.00021368,2]
[365181717,1749521446166,-500.0,0.00021368,2]
[365181720,1749521446176,-581.54404426,0.00021368,2]
[365181722,1749521446185,-500.0,0.00021368,2]
[365181724,1749521446195,-500.0,0.00021368,2]
[365181726,1749521446205,-467.42099105,0.00021368,2]
[365181728,1749521446215,-500.0,0.00021368,2]
[365181731,1749521446224,-500.0,0.00021368,2]
[365181734,1749521446233,-500.0,0.00021368,2]
[365181737,1749521446243,-394.52719723,0.00021368,2]
[365181740,1749521446252,-499.99999999,0.00021368,2]
[365181742,1749521446263,-151.0,0.00021368,2]
[365181746,1749521446276,-413.11829246,0.00021369,4]
[365181748,1749521446286,-430.18447392,0.00021369,4]
[365181752,1749521446296,-460.0,0.00021369,4]
[365181755,1749521446305,-428.27927987,0.00021369,4]
[365181758,1749521446315,-427.41476204,0.00021369,4]
[365181760,1749521446324,-463.73076138,0.00021369,4]
[365181762,1749521446334,-415.67842174,0.00021369,4]
[365181764,1749521446343,-414.31996496,0.00021369,4]
[365181766,1749521446352,-414.23756054,0.00021369,4]
[365181767,1749521446361,-547.79821121,0.00021369,4]
[365181770,1749521446372,-412.41366281,0.00021369,4]
[365181772,1749521446382,-419.55749692,0.00021369,4]
[365181774,1749521446391,-425.55803299,0.00021369,4]
[365181776,1749521446401,-391.12377343,0.00021369,4]
[365181778,1749521446410,-434.32665036,0.00021369,4]
[365181780,1749521446419,-429.4166742,0.00021369,4]
[365181782,1749521446428,-400.40695297,0.00021369,4]
[365181784,1749521446437,-434.85028011,0.00021369,4]
[365181785,1749521446447,-460.0,0.00021369,4]
[365181788,1749521446457,-439.71631909,0.00021369,4]
[365181789,1749521446467,-460.0,0.00021369,4]
[365181791,1749521446476,-460.0,0.00021369,4]
[365181794,1749521446486,-413.26370949,0.00021369,4]
[365181796,1749521446502,-460.0,0.00021369,4]
[365181798,1749521446514,-603.2134005,0.00021369,4]
[365181801,1749521446528,-426.09384269,0.00021369,4]
[365181803,1749521446541,-433.90974495,0.00021369,4]
[365181805,1749521446554,-339.15699494,0.00021369,4]
[365181807,1749521446565,-336.85817902,0.00021369,4]
[365181810,1749521446577,-428.88320822,0.00021369,4]
[365181812,1749521446589,-460.0,0.00021369,4]
[365181814,1749521446601,-460.0,0.00021369,4]
[365181816,1749521446614,-434.53633566,0.00021369,4]
[365181818,1749521446625,-460.0,0.00021369,4]
[365181821,1749521446639,-460.0,0.00021369,4]
[365181823,1749521446652,-460.0,0.00021369,4]
[365181825,1749521446664,-460.0,0.00021369,4]
[365181827,1749521446676,-460.0,0.00021369,4]
[365181829,1749521446688,-460.0,0.00021369,4]
[365181832,1749521446700,-422.007099,0.00021369,4]
[365181834,1749521446712,-423.23905841,0.00021369,4]
[365181836,1749521446725,-414.61055456,0.00021369,4]
[365181838,1749521446736,-460.0,0.00021369,4]
[365181840,1749521446749,-460.0,0.00021369,4]
[365181842,1749521446759,-460.0,0.00021369,4]
[365181845,1749521446771,-460.0,0.00021369,4]
[365181847,1749521446783,-659.36,0.00021369,4]
[365181849,1749521446794,-460.0,0.00021369,4]
[365181851,1749521446805,-460.0,0.00021369,4]
[365181854,1749521446818,-405.68951477,0.00021369,4]
[365181857,1749521446829,-254.76501844,0.00021369,4]
[365181859,1749521446841,-460.0,0.00021369,4]
[365181861,1749521446852,-460.0,0.00021369,4]
[365181864,1749521446863,-355.10572443,0.00021369,4]
[365181866,1749521446874,-472.39054586,0.00021369,4]
[365181868,1749521446884,-460.0,0.00021369,4]
[365181870,1749521446894,-424.51998405,0.00021369,4]
[365181872,1749521446906,-460.0,0.00021369,4]
[365181874,1749521446916,-151.0,0.00021369,2]
[365181876,1749521446928,-151.0,0.00021369,2]
[365181879,1749521446938,-460.0,0.00021369,4]
[365181881,1749521446949,-444.51821925,0.00021369,4]
[365181883,1749521446960,-350.0,0.00021369,2]
[365181885,1749521446973,-460.0,0.00021369,4]
[365181887,1749521446986,-460.0,0.00021369,4]
[365181890,1749521446999,-460.0,0.00021369,4]
[365181892,1749521447011,-426.82526045,0.00021369,4]
[365181894,1749521447023,-2093.86,0.00021369,4]
[365181897,1749521447035,-533.02978458,0.00021369,4]
[365181899,1749521447047,-420.0,0.00021369,4]
[365181901,1749521447059,-593.54,0.00021369,4]
[365181903,1749521447069,-612.09,0.00021369,4]
[365181905,1749521447079,-418.96756827,0.00021369,4]
[365181907,1749521447089,-430.12595329,0.00021369,4]
[365181909,1749521447099,-155.66405367,0.00021369,4]
[365181912,1749521447110,-460.0,0.00021369,4]
[365181914,1749521447122,-411.32096297,0.00021369,4]
[365181916,1749521447134,-460.0,0.00021369,4]
[365181918,1749521447145,-460.0,0.00021369,4]
[365181921,1749521447158,-286.69418797,0.00021369,4]
[365181923,1749521447168,-472.23186088,0.00021369,4]
[365181925,1749521447178,-460.0,0.00021369,4]
[365181927,1749521447189,-764.77,0.00021369,4]
[365181929,1749521447201,-1127.19,0.00021369,4]
[365181931,1749521447211,-779.64,0.00021369,4]
[365181933,1749521447224,-741.47,0.00021369,4]
[365181936,1749521447234,-415.32899784,0.00021369,4]
[365181938,1749521447244,-460.0,0.00021369,4]
[365181939,1749521447254,-460.0,0.00021369,4]
[365181940,1749521447265,-460.0,0.00021369,4]
[365181941,1749521447275,-2356.36,0.000214,2]
[365181942,1749521447285,-472.87687295,0.00021452,5]
[365181943,1749521447295,-500.80208639,0.00021469,2]
[365181944,1749521447306,-472.87687295,0.00021624,5]
[365181945,1749521447317,-407.25777562,0.00021643,4]
[365181946,1749521447327,-458.15871805,0.00021643,4]
[365181947,1749521447338,-417.25537963,0.00021643,4]
[365181948,1749521447350,-380.54294859,0.00021643,4]
[365181949,1749521447361,-406.74025097,0.00021643,4]
[365181950,1749521447372,-535.88280657,0.00021643,4]
[365181951,1749521447383,-460.0,0.00021643,4]
[365181952,1749521447394,-460.0,0.00021643,4]
[365181953,1749521447405,-403.72082862,0.00021643,4]
[365181954,1749521447416,-414.39519091,0.00021643,4]
[365181955,1749521447427,-407.19683907,0.00021643,4]
[365181956,1749521447438,-408.08143489,0.00021643,4]
[365181957,1749521447449,-460.0,0.00021643,4]
[365181958,1749521447459,-460.0,0.00021643,4]
[365181959,1749521447471,-460.0,0.00021643,4]
[365181960,1749521447482,-460.0,0.00021643,4]
[365181961,1749521447497,-460.0,0.00021643,4]
[365181962,1749521447508,-659.36,0.00021643,4]
[365181963,1749521447519,-435.09041308,0.00021643,4]
[365181964,1749521447529,-451.3456371,0.00021643,4]
[365181965,1749521447541,-460.0,0.00021643,4]
[365181966,1749521447552,-460.0,0.00021643,4]
[365181967,1749521447564,-460.0,0.00021643,4]
[365181968,1749521447576,-151.0,0.00021643,2]
[365181969,1749521447587,-460.0,0.00021643,4]
[365181970,1749521447598,-350.0,0.00021643,2]
[365181971,1749521447609,-460.0,0.00021643,4]
[365181972,1749521447621,-358.3652595,0.00021643,4]
[365181973,1749521447633,-460.0,0.00021643,4]
[365181974,1749521447644,-2093.86,0.00021643,4]
[365181975,1749521447655,-593.54,0.00021643,4]
[365181976,1749521447666,-612.09,0.00021643,4]
[365181977,1749521447676,-460.0,0.00021643,4]
[365181978,1749521447687,-460.0,0.00021643,4]
[365181979,1749521447699,-579.91376046,0.00021643,4]
[365181980,1749521447710,-460.0,0.00021643,4]
[365181981,1749521447722,-764.77,0.00021643,4]
[365181982,1749521447734,-1127.19,0.00021643,4]
[365181983,1749521447744,-779.64,0.00021643,4]
[365181984,1749521447755,-741.47,0.00021643,4]
[365181985,1749521447765,-460.0,0.00021643,4]
[365181986,1749521447777,-460.0,0.00021643,4]
[365181987,1749521447787,-305.22190914,0.00021643,4]
[365181988,1749521447798,-924.874648,0.00021682,3]
[365181989,1749521447809,-472.87687295,0.00021797,6]
[365181990,1749521447819,-5970.0,0.0002181,7]
[365181991,1749521447830,-505.3571264,0.00021865,2]
[365181992,1749521447841,-315.95438534,0.00021876,2]
[365181993,1749521447852,-151.0,0.00021917,2]
[365181994,1749521447863,-326.19380777,0.00021917,4]
[365181995,1749521447875,-460.0,0.00021917,4]
[365181996,1749521448018,-460.0,0.00021917,4]
[365181997,1749521448029,-312.85720107,0.00021917,4]
[365181998,1749521448039,-341.34835705,0.00021917,4]
[365181999,1749521448048,-842.5625,0.00021917,7]
[365182000,1749521448058,-230.09309915,0.00021917,4]
[365182001,1749521448067,-460.0,0.00021917,4]
[365182002,1749521448077,-659.36,0.00021917,4]
[365182003,1749521448086,-460.0,0.00021917,4]
[365182004,1749521448095,-460.0,0.00021917,4]
[365182005,1749521448105,-460.0,0.00021917,4]
[365182006,1749521448114,-151.0,0.00021917,2]
[365182007,1749521448124,-460.0,0.00021917,4]
[365182008,1749521448134,-494.14924135,0.00021917,2]
[365182009,1749521448143,-460.0,0.00021917,4]
[365182010,1749521448153,-460.0,0.00021917,4]
[365182011,1749521448162,-2093.86,0.00021917,4]
[365182012,1749521448172,-593.54,0.00021917,4]
[365182013,1749521448181,-612.09,0.00021917,4]
[365182014,1749521448190,-460.0,0.00021917,4]
[365182015,1749521448199,-460.0,0.00021917,4]
[365182016,1749521448208,-460.0,0.00021917,4]
[365182017,1749521448217,-764.77,0.00021917,4]
[365182018,1749521448226,-1127.19,0.00021917,4]
[365182019,1749521448236,-779.64,0.00021917,4]
[365182020,1749521448245,-1500.0,0.00021917,7]
[365182021,1749521448255,-1500.0,0.00021917,7]
[365182022,1749521448264,-1500.0,0.00021917,7]
[365182023,1749521448274,-1500.0,0.00021917,7]
[365182024,1749521448283,-1500.0,0.00021917,7]
[365182025,1749521448293,-741.47,0.00021917,4]
[365182026,1749521448302,-1258.19537539,0.00021917,7]
[365182031,1749521448535,-241.80462461,0.00021917,7]
[365182032,1749521448545,-1500.0,0.00021917,7]
[365182033,1749521448555,-1500.0,0.00021917,7]
[365182034,1749521448564,-303.65953647,0.00021917,7]
[365182049,1749521564386,1208.0,0.00024683,120]
[365182132,1749521933018,176.768249,0.00013699,2]
[365182147,1749522161874,1937.88456676,0.00024679,120]
[365182160,1749522398954,-1158.68,0.00024682,120]
[365182161,1749522399030,-200.0,0.000248,120]
[365182162,1749522399100,-200.0,0.000248,120]
[365182163,1749522399174,-1600.0,0.000248,120]
[365182164,1749522399200,-200.0,0.00024836,120]
[365182165,1749522399228,-200.0,0.00024904,120]
[365182166,1749522399255,-200.0,0.00024992,120]
[365182167,1749522399282,-200.0,0.00025,120]
[365182168,1749522399309,-1400.0,0.00025,120]
[365182169,1749522399335,-162.4847267,0.00025,120]
[365182170,1749522399360,-4278.8352733,0.00025,120]
[365182185,1749522506285,810.06164029,0.000176,2]
[365182186,1749522506308,1261.37524461,0.000176,2]
[365182187,1749522515378,150.46341891,0.0002,120]
[365182188,1749522516176,2250.88988851,0.00017,2]
[365182193,1749522525905,156.00209385,0.00024679,120]
[365182242,1749522631882,-305.54568552,0.00018543,2]
[365182244,1749522631892,-3266.6511393,0.00019116,6]
[365182339,1749522637883,-1733.3488607,0.00019116,6]
[365182341,1749522637892,-200.0,0.00019999,2]
[365182343,1749522637901,-1002.54707671,0.0002,5]
[365182344,1749522637910,-297.82807437,0.0002,2]
[365182347,1749522637921,-297.82807431,0.00020072,2]
[365182349,1749522637931,-297.82807431,0.00020245,2]
[365182351,1749522637940,-673.28494393,0.00020336,2]
[365182371,1749522640211,-49.52793536,0.00020336,2]
[365182378,1749522642938,-477.18712071,0.00020336,2]
[365182380,1749522642948,-300.0,0.00020337,2]
[365182382,1749522642958,-300.0,0.00020337,2]
[365182383,1749522642968,-300.0,0.00020337,2]
[365182384,1749522642978,-195.08569883,0.0002034,2]
[365182385,1749522642993,-1764.44342497,0.0002034,2]
[365182386,1749522643004,-185.74281136,0.00021,2]
[365182387,1749522643013,-207.4,0.00021018,2]
[365182388,1749522643023,-460.0,0.00021095,4]
[365182389,1749522643032,-363.72924578,0.00021095,4]
[365182390,1749522643042,-1139.0,0.0002132,2]
[365182391,1749522643051,-460.0,0.00021365,4]
[365182392,1749522643061,-460.0,0.00021365,4]
[365182393,1749522643070,-460.0,0.00021365,4]
[365182394,1749522643081,-1744.89,0.00021365,4]
[365182395,1749522643090,-494.62,0.00021365,4]
[365182396,1749522643099,-510.08,0.00021365,4]
[365182397,1749522643108,-256.46725344,0.00021365,4]
[365182398,1749522643117,-637.31,0.00021365,4]
[365182399,1749522643127,-976.68,0.00021365,4]
[365182400,1749522643136,-617.89,0.00021365,4]
[365182401,1749522643146,-435.12378708,0.00021366,4]
[365182402,1749522643155,-460.0,0.00021366,4]
[365182403,1749522643165,-435.32673048,0.00021366,4]
[365182404,1749522643175,-549.47,0.00021366,4]
[365182405,1749522643184,-460.0,0.00021366,4]
[365182406,1749522643192,-460.0,0.00021366,4]
[365182407,1749522643201,-460.0,0.00021366,4]
[365182408,1749522643211,-460.0,0.00021366,4]
[365182409,1749522643220,-362.05674681,0.00021367,4]
[365182410,1749522643229,-441.6022411,0.00021367,4]
[365182411,1749522643239,-460.0,0.00021367,4]
[365182412,1749522643247,-460.0,0.00021367,4]
[365182413,1749522643257,-649.7,0.00021367,4]
[365182414,1749522643268,-574.43870299,0.00021367,4]
[365182415,1749522643277,-460.0,0.00021369,4]
[365182416,1749522643286,-264.06791559,0.00021447,2]
[365182417,1749522643297,-479.55781614,0.00021447,2]
[365182430,1749522975812,176.768249,0.00013699,2]
[365182512,1749523831993,-262.58607198,0.0002027,2]
[365182514,1749523832003,-5000.0,0.00020294,2]
[365182516,1749523832012,-16759.23110502,0.00020365,2]
[365182811,1749523840244,-5000.0,0.00020162,2]
[365182813,1749523840253,-2319.01406576,0.00020365,2]
[365182815,1749523840265,-4440.0,0.00020365,2]
[365184039,1749524336017,-1381.75482922,0.00020365,2]
[365184040,1749524336040,-3456.98334636,0.00020516,7]
[365184041,1749524336061,-183.32741132,0.00020723,2]
[365184042,1749524336082,-300.0,0.00021171,2]
[365184043,1749524336102,-300.0,0.00021171,2]
[365184044,1749524336124,-300.0,0.00021171,2]
[365184045,1749524336146,-300.0,0.00021171,2]
[365184046,1749524336167,-300.0,0.00021359,2]
[365184047,1749524336189,-476.23999682,0.0002136,4]
[365184048,1749524336211,-482.00718605,0.0002136,4]
[365184049,1749524336232,-400.66688984,0.0002136,4]
[365184050,1749524336254,-460.0,0.0002136,4]
[365184051,1749524336278,-513.81,0.0002136,4]
[365184052,1749524336298,-1152.8463866,0.0002136,2]
[365184053,1749524336319,-586.2366779,0.0002136,4]
[365184054,1749524336341,-459.3748151,0.0002136,4]
[365184055,1749524336369,-992.65,0.0002136,4]
[365184056,1749524336391,-446.86003926,0.00021361,4]
[365184057,1749524336413,-460.0,0.00021361,4]
[365184058,1749524336436,-460.0,0.00021361,4]
[365184059,1749524336460,-526.57,0.00021361,4]
[365184060,1749524336482,-460.31840837,0.00021361,4]
[365184061,1749524336505,-460.0,0.00021361,4]
[365184062,1749524336527,-420.32670754,0.00021361,4]
[365184063,1749524336548,-460.0,0.00021361,4]
[365184064,1749524336570,-460.0,0.00021361,4]
[365184065,1749524336593,-460.0,0.00021361,4]
[365184066,1749524336615,-1730.73,0.00021361,4]
[365184067,1749524336638,-526.32,0.00021361,4]
[365184068,1749524336660,-300.0,0.00021361,4]
[365184069,1749524336682,-460.0,0.00021361,4]
[365184070,1749524336704,-460.0,0.00021361,4]
[365184071,1749524336726,-440.0,0.00021361,4]
[365184072,1749524336748,-440.0,0.00021361,4]
[365184073,1749524336769,-378.45059827,0.00021361,4]
[365184074,1749524336793,-440.0,0.00021361,4]
[365184075,1749524336816,-654.9,0.00021361,4]
[365184076,1749524336838,-660.97,0.00021361,4]
[365184077,1749524336861,-648.81,0.00021361,4]
[365184078,1749524336883,-460.0,0.00021361,4]
[365184079,1749524336903,-273.84027113,0.00021362,4]
[365184080,1749524336925,-474.88841641,0.00021362,4]
[365184081,1749524336945,-440.65243099,0.00021362,4]
[365184082,1749524336967,-346.01548637,0.00021362,4]
[365184083,1749524336993,-460.0,0.00021362,4]
[365184084,1749524337014,-460.0,0.00021362,4]
[365184085,1749524337035,-460.0,0.00021363,4]
[365184086,1749524337056,-395.37426827,0.00021447,2]
[365184087,1749524337077,-155.0,0.00021447,2]
[365184088,1749524337099,-633.97,0.00021473,2]
[365184089,1749524337120,-174.97181294,0.000215,2]
[365184090,1749524337145,-1139.0,0.00021519,2]
[365184091,1749524337167,-1139.0,0.00021541,2]
[365184092,1749524337187,-185.0,0.000216,3]
[365184093,1749524337208,-185.0,0.000216,3]
[365184094,1749524337229,-583.5158978,0.00021634,4]
[365184095,1749524337252,-513.81,0.00021634,4]
[365184096,1749524337276,-992.65,0.00021634,4]
[365184097,1749524337297,-267.15812344,0.00021635,4]
[365184101,1749524403148,8868.29761788,0.000173,2]
[365184102,1749524403172,9673.70238212,0.000173,2]
[365184131,1749525032121,-275.915419,0.00019161,2]
[365184132,1749525032132,-505.14865725,0.00019728,2]
[365184133,1749525032142,-252.57432863,0.00019749,2]
[365184134,1749525032153,-100.08756919,0.00019754,2]
[365184190,1749525038286,-4899.91243081,0.00019754,2]
[365184192,1749525038296,-1676.7433643,0.00020284,2]
[365184194,1749525038306,-216.0,0.00020337,2]
[365184196,1749525038315,-12933.0820637,0.00020338,2]
[365184198,1749525038325,-3482.2726935,0.0002036,2]
[365184200,1749525038335,-202.39657913,0.0002036,2]
[365184202,1749525038344,-242.87589495,0.00020719,2]
[365184204,1749525038353,-769.55959112,0.000209,4]
[365184206,1749525038364,-769.55959104,0.00021038,4]
[365184208,1749525038373,-2043.31,0.00021137,2]
[365184210,1749525038382,-769.55959104,0.00021176,4]
[365184212,1749525038392,-769.55959104,0.00021314,5]
[365184214,1749525038403,-440.0,0.00021359,4]
[365184216,1749525038414,-460.0,0.0002136,4]
[365184218,1749525038424,-483.89665395,0.0002136,4]
[365184220,1749525038433,-460.0,0.0002136,4]
[365184222,1749525038443,-460.0,0.0002136,4]
[365184224,1749525038453,-487.00618054,0.0002136,4]
[365184226,1749525038463,-832.65,0.0002136,4]
[365184228,1749525038472,-460.0,0.0002136,4]
[365184230,1749525038482,-460.0,0.0002136,4]
[365184233,1749525038492,-460.0,0.0002136,4]
[365184234,1749525038502,-460.0,0.0002136,4]
[365184237,1749525038512,-675.53,0.0002136,4]
[365184238,1749525038522,-460.0,0.0002136,4]
[365184241,1749525038532,-460.0,0.0002136,4]
[365184242,1749525038541,-460.0,0.0002136,4]
[365184245,1749525038552,-460.0,0.0002136,4]
[365184247,1749525038561,-380.0,0.0002136,4]
[365184249,1749525038571,-460.0,0.0002136,4]
[365184251,1749525038583,-545.7583,0.0002136,4]
[365184253,1749525038593,-320.0,0.0002136,4]
[365184255,1749525038602,-460.0,0.0002136,4]
[365184257,1749525038611,-460.0,0.0002136,4]
[365184259,1749525038622,-460.0,0.0002136,4]
[365184261,1749525038631,-460.0,0.0002136,2]
[365184263,1749525038640,-548.38656646,0.00021361,4]
[365184265,1749525038650,-769.55959104,0.00021452,5]
[365184266,1749525038661,-625.9,0.00021474,2]
[365184268,1749525038672,-891.79912,0.00021478,3]
[365184271,1749525038688,-174.97181292,0.00021534,2]
[365184273,1749525038699,-769.55959104,0.0002159,5]
[365184275,1749525038709,-151.46378739,0.00021592,2]
[365184277,1749525038719,-362.75589324,0.00021633,4]
[365184279,1749525038728,-270.0,0.00021633,4]
[365184281,1749525038738,-460.0,0.00021633,4]
[365184283,1749525038747,-3075.49,0.00021633,4]
[365184285,1749525038756,-710.63,0.00021633,4]
[365184286,1749525038766,-632.86,0.00021633,4]
[365184288,1749525038775,-460.0,0.00021633,4]
[365184289,1749525038786,-460.0,0.00021633,4]
[365184290,1749525038795,-1093.05,0.00021633,4]
[365184291,1749525038804,-805.4,0.00021633,4]
[365184292,1749525038814,-460.0,0.00021634,4]
[365184293,1749525038824,-695.32,0.00021634,4]
[365184294,1749525038834,-460.0,0.00021634,4]
[365184295,1749525038844,-460.0,0.00021634,4]
[365184296,1749525038853,-832.65,0.00021634,4]
[365184297,1749525038862,-460.0,0.00021634,4]
[365184298,1749525038871,-460.0,0.00021634,4]
[365184299,1749525038881,-460.0,0.00021634,4]
[365184300,1749525038891,-461.30692587,0.00021634,4]
[365184301,1749525038899,-675.53,0.00021634,4]
[365184302,1749525038908,-460.0,0.00021634,4]
[365184303,1749525038918,-451.52200197,0.00021634,4]
[365184304,1749525038927,-460.0,0.00021634,4]
[365184305,1749525038936,-460.0,0.00021634,4]
[365184306,1749525038946,-460.0,0.00021634,4]
[365184307,1749525038955,-460.0,0.00021634,4]
[365184308,1749525038964,-460.0,0.00021634,4]
[365184309,1749525038973,-460.0,0.00021634,4]
[365184310,1749525038983,-460.0,0.00021634,4]
[365184311,1749525038991,-460.0,0.00021634,4]
[365184312,1749525039001,-460.0,0.00021634,4]
[365184313,1749525039011,-460.0,0.00021634,2]
[365184314,1749525039020,-207.4,0.00021636,2]
[365184315,1749525039030,-460.0,0.00021636,4]
[365184316,1749525039039,-5000.0,0.00021662,2]
[365184317,1749525039049,-1139.0,0.00021699,2]
[365184318,1749525039058,-769.55959104,0.00021728,5]
[365184319,1749525039068,-1139.0,0.00021738,2]
[365184320,1749525039077,-1139.0,0.0002179,2]
[365184321,1749525039086,-1139.0,0.00021797,2]
[365184322,1749525039095,-5427.0,0.0002181,7]
[365184323,1749525039104,-1139.0,0.00021835,2]
[365184324,1749525039113,-1139.0,0.00021841,2]
[365184325,1749525039122,-769.55959104,0.00021866,6]
[365184326,1749525039131,-460.0,0.00021907,4]
[365184327,1749525039140,-3075.49,0.00021907,4]
[365184328,1749525039150,-710.63,0.00021907,4]
[365184329,1749525039159,-632.86,0.00021907,4]
[365184330,1749525039168,-543.48704835,0.00021907,4]
[365184331,1749525039177,-1093.05,0.00021907,4]
[365184332,1749525039186,-805.4,0.00021907,4]
[365184333,1749525039194,-460.0,0.00021908,4]
[365184334,1749525039202,-695.32,0.00021908,4]
[365184335,1749525039211,-460.0,0.00021908,4]
[365184336,1749525039347,-460.0,0.00021908,4]
[365184337,1749525039356,-832.65,0.00021908,4]
[365184338,1749525039366,-460.0,0.00021908,4]
[365184339,1749525039375,-675.53,0.00021908,4]
[365184340,1749525039385,-460.0,0.00021908,4]
[365184341,1749525039395,-460.0,0.00021908,4]
[365184342,1749525039404,-460.0,0.00021908,4]
[365184343,1749525039414,-571.03746694,0.00021908,4]
[365184344,1749525039423,-460.0,0.00021908,4]
[365184345,1749525039433,-460.0,0.00021908,4]
[365184346,1749525039442,-460.0,0.00021908,4]
[365184347,1749525039451,-460.0,0.00021908,4]
[365184348,1749525039461,-460.0,0.00021908,4]
[365184349,1749525039470,-460.0,0.0002191,4]
[365184350,1749525039479,-500.0,0.00021917,4]
[365184351,1749525039489,-500.0,0.00021917,4]
[365184352,1749525039499,-500.0,0.00021917,4]
[365184353,1749525039509,-962.54960141,0.00021944,2]
[365184354,1749525039518,-502.4612989,0.00021971,2]
[365184355,1749525039528,-437.67835116,0.00022,2]
[365184356,1749525039538,-4224.30493656,0.00022,7]
[365184357,1749525039548,-161.0,0.00022,2]
[365184358,1749525039557,-161.0,0.00022,2]
[365184359,1749525039567,-151.0,0.00022003,7]
[365184360,1749525039579,-151.0,0.00022003,7]
[365184361,1749525039588,-401.524611,0.00022003,2]
[365184362,1749525039597,-401.524611,0.00022003,2]
[365184363,1749525039606,-401.524611,0.00022003,2]
[365184364,1749525039616,-401.524611,0.00022003,2]
[365184365,1749525039626,-151.0,0.00022003,7]
[365184366,1749525039635,-151.0,0.00022003,7]
[365184367,1749525039644,-769.55959104,0.00022003,6]
[365184368,1749525039655,-158.39,0.00022024,3]
[365184369,1749525039666,-475.22,0.00022024,3]
[365184370,1749525039682,-3323.99680966,0.00022031,2]
[365184371,1749525039693,-251.04762585,0.00022031,2]
[365184372,1749525039702,-156.94223134,0.00022031,2]
[365184373,1749525039711,-16000.0,0.00022031,2]
[365184374,1749525039720,-12474.12358109,0.00022031,2]
[365184375,1749525039729,-151.0,0.00022031,7]
[365184376,1749525039739,-401.524611,0.00022031,2]
[365184377,1749525039749,-401.524611,0.00022031,2]
[365184378,1749525039760,-187.381762,0.00022031,7]
[365184379,1749525039771,-842.5625,0.00022031,7]
[365184380,1749525039782,-927.6,0.00022034,3]
[365184381,1749525039791,-463.8,0.00022034,3]
[365184382,1749525039800,-316.79,0.00022034,3]
[365184383,1749525039810,-5427.0,0.00022044,7]
[365184384,1749525039819,-151.0,0.00022044,7]
[365184385,1749525039828,-278.722055,0.00022044,7]
[365184386,1749525039837,-151.0,0.00022044,7]
[365184387,1749525039847,-401.524611,0.00022044,2]
[365184388,1749525039856,-401.524611,0.00022044,2]
[365184389,1749525039864,-3000.0,0.000221,2]
[365184390,1749525039873,-1855.2,0.000221,3]
[365184391,1749525039882,-3000.0,0.0002211,2]
[365184392,1749525039891,-963.0,0.00022111,2]
[365184393,1749525039901,-653.0,0.00022111,2]
[365184394,1749525039911,-2160.0,0.00022111,2]
[365184395,1749525039920,-405.0,0.00022111,2]
[365184396,1749525039929,-405.0,0.00022111,2]
[365184397,1749525039939,-3000.0,0.0002212,2]
[365184398,1749525039948,-3000.0,0.0002213,2]
[365184399,1749525039957,-151.0,0.0002213,7]
[365184400,1749525039966,-401.524611,0.0002213,2]
[365184401,1749525039975,-401.524611,0.0002213,2]
[365184402,1749525039985,-3000.0,0.0002214,2]